bitfinex/quotes_ETHUSD_20240530
["timestamp","ask_amount","ask_price","bid_price","bid_amount"]
[1717074642227,1.927,3775.0,3774.7,0.07301291]
[1717074642434,2.24948922,3775.0,3774.2,10.02954]
[1717074642633,2.24948922,3775.0,3774.8,0.07297669]
[1717074642948,2.64921,3774.7,3774.2,7.38]
[1717074643147,1.927,3774.6,3774.2,7.38]
[1717074643340,1.927,3774.6,3773.9,2.2501]
[1717074643891,1.927,3774.6,3773.8,15.00978]
[1717074643892,2.64935,3774.5,3773.8,15.00978]
[1717074644727,1.927,3774.6,3773.8,15.00978]
[1717074644980,2.64914,3774.9,3773.8,15.00978]
[1717074646479,2.64914,3774.9,3774.1,2.64961]
[1717074648551,2.64914,3774.9,3774.2,2.4757]
[1717074648752,2.64914,3774.9,3774.3,0.512531]
[1717074649154,1.927,3775.2,3774.3,0.512531]
[1717074649368,1.927,3775.2,3774.3,2.64949]
[1717074651675,2.64886,3775.3,3774.5,2.64931]
[1717074651875,2.64886,3775.3,3774.2,2.4757]
[1717074651876,4.57555,3775.7,3774.6,2.2997]
[1717074652082,0.757555,3775.6,3774.6,2.2997]
[1717074652418,0.5730905,3775.6,3774.6,2.2997]
[1717074652947,0.5730905,3775.6,3774.7,2.6492]
[1717074653290,1.927,3775.5,3774.7,2.6492]
[1717074654065,2.64855,3775.7,3775.0,2.649]
[1717074654270,1.44751621,3776.6,3775.0,2.649]
[1717074654271,4.57529,3776.1,3775.2,2.365]
[1717074654484,0.57305158,3776.0,3775.2,2.365]
[1717074655569,2.64838,3775.9,3775.2,2.365]
[1717074656194,2.64838,3775.9,3775.3,0.07258771]
[1717074657762,1.44751621,3776.6,3775.3,0.07258771]
[1717074657965,2.64815,3776.3,3775.4,0.24375877]
[1717074658277,0.57305444,3776.2,3775.5,0.07244437]
[1717074658482,2.64815,3776.3,3775.5,0.07244437]
[1717074659184,2.64815,3776.3,3775.6,2.2793]
[1717074659563,2.64815,3776.3,3775.7,0.07230595]
[1717074660275,4.57532,3776.0,3775.7,0.07230595]
[1717074660473,4.57532,3776.0,3775.3,2.64878]
[1717074660701,4.57532,3776.0,3775.8,0.07223307]
[1717074660865,4.57532,3776.0,3775.3,2.64878]
[1717074661060,4.57532,3776.0,3775.9,0.07219687]
[1717074661263,4.57532,3776.0,3775.3,2.64878]
[1717074661462,4.57532,3776.0,3775.9,0.07223109]
[1717074661702,4.57532,3776.0,3775.2,9.843]
[1717074661906,4.57532,3776.0,3775.9,0.07223843]
[1717074662104,4.57532,3776.0,3775.2,9.843]
[1717074662404,4.57532,3776.0,3775.3,0.07245568]
[1717074662702,2.64848,3775.8,3775.3,0.07245568]
[1717074663105,2.64868,3775.5,3774.9,14.7499]
[1717074663319,1.927,3775.6,3775.4,0.07241946]
[1717074663473,2.64844,3775.8,3774.9,14.7499]
[1717074663687,2.64844,3775.8,3775.5,0.0723172]
[1717074663890,2.64844,3775.8,3774.9,14.7499]
[1717074664123,2.64844,3775.8,3775.6,0.07229566]
[1717074664287,2.64844,3775.8,3774.9,14.7499]
[1717074664490,2.6482,3776.2,3775.7,0.07225945]
[1717074664689,0.57304817,3776.1,3774.9,16.04779222]
[1717074664929,2.6482,3776.2,3775.8,0.07222324]
[1717074665119,2.6482,3776.2,3774.9,16.04779222]
[1717074665318,1.92525498,3776.1,3774.9,16.04779222]
[1717074665505,1.92525498,3776.1,3775.0,0.07251295]
[1717074665995,1.92525498,3776.1,3775.4,2.64871]
[1717074666319,1.92525498,3776.1,3775.5,0.07233187]
[1717074667129,1.92525498,3776.1,3775.6,2.2596]
[1717074667334,1.92525498,3776.1,3775.7,0.49806419]
[1717074667518,2.6482,3776.2,3775.7,0.07225945]
[1717074667832,6.02245621,3776.6,3775.7,0.07225945]
[1717074668135,2.64803,3776.4,3775.7,0.07225945]
[1717074668429,1.92519651,3776.3,3775.7,0.07225945]
[1717074669712,2.64803,3776.4,3775.7,0.07225945]
[1717074669906,2.64803,3776.4,3775.8,0.49803795]
[1717074670638,2.64803,3776.4,3775.9,0.07218704]
[1717074672201,1.44751621,3776.6,3775.9,0.07218704]
[1717074673123,1.44751621,3776.6,3775.9,2.72052704]
[1717074673526,1.44751621,3776.6,3776.0,2.342]
[1717074673738,1.44751621,3776.6,3776.1,3.2042865]
[1717074674036,1.44751621,3776.6,3776.1,3.27619579]
[1717074676417,1.44751621,3776.6,3776.4,2.648]
[1717074676617,1.44751621,3776.6,3776.5,2.4728]
[1717074676850,1.44751621,3776.6,3776.5,2.54428095]
[1717074677145,1.44751621,3776.6,3776.5,3.06350905]
[1717074678250,1.44751621,3776.6,3776.5,0.07148095]
[1717074678605,1.44751621,3776.6,3776.4,2.648]
[1717074678831,1.44751621,3776.6,3776.5,0.07125129]
[1717074679019,1.44751621,3776.6,3776.4,2.648]
[1717074679439,1.44751621,3776.6,3776.5,0.07126859]
[1717074680152,1.44751621,3776.6,3776.5,0.34319545]
[1717074680350,1.44751621,3776.6,3776.5,0.27192686]
[1717074680511,1.44751621,3776.6,3776.5,0.34318568]
[1717074681627,1.44751621,3776.6,3776.5,0.07125882]
[1717074681825,1.44751621,3776.6,3776.1,5.04043]
[1717074682012,1.927,3776.5,3775.8,7.87803795]
[1717074682633,1.927,3776.5,3775.9,0.07147601]
[1717074688460,1.44751621,3776.6,3775.9,0.07147601]
[1717074690325,1.92501269,3776.5,3775.9,0.07147601]
[1717074690566,1.44751621,3776.6,3775.9,0.07147601]
[1717074691370,1.92501183,3776.5,3775.9,0.07147601]
[1717074694084,4.5753,3776.0,3775.9,0.07147601]
[1717074694383,2.64852,3775.7,3775.3,7.38]
[1717074694545,2.64852,3775.7,3774.7,2.2849]
[1717074694546,1.927,3775.5,3774.8,7.38]
[1717074697239,4.57572,3775.5,3774.8,7.38]
[1717074697564,4.57594,3775.1,3774.4,19.74]
[1717074697765,4.57594,3775.1,3774.0,7.38]
[1717074698983,2.64914,3774.9,3774.0,7.38]
[1717074699683,2.64929,3774.6,3774.0,7.38]
[1717074699993,2.64946,3774.4,3774.0,7.38]
[1717074700488,1.927,3774.3,3774.0,7.38]
[1717074700666,1.927,3774.3,3773.4,7.38]
[1717074700839,1.927,3774.3,3773.5,2.65002]
[1717074701042,1.927,3774.3,3773.6,0.07027452]
[1717074702313,2.64946,3774.4,3773.6,1.31628397]
[1717074705959,2.64918,3774.8,3773.8,2.2526]
[1717074706452,2.64918,3774.8,3773.9,2.72045239]
[1717074708315,2.64874,3775.4,3774.3,2.64947]
[1717074708525,2.64847,3775.8,3774.5,5.07662]
[1717074708753,4.57547,3775.8,3774.7,2.64914]
[1717074708957,2.64815,3776.3,3775.0,2.64898]
[1717074709265,0.497605,3776.2,3775.0,3.04366722]
[1717074709563,1.927,3775.9,3775.1,0.07010641]
[1717074712158,2.3279,3776.4,3775.3,2.4091]
[1717074712159,1.927,3776.3,3775.3,2.4091]
[1717074712369,1.927,3776.3,3775.4,1.67560208]
[1717074712514,2.64807,3776.4,3775.4,1.74543161]
[1717074712719,1.44751621,3776.6,3775.5,2.64865]
[1717074712920,1.44751621,3776.6,3775.6,0.06975711]
[1717074714017,1.44751621,3776.6,3775.7,2.64845]
[1717074714417,1.44751621,3776.6,3775.8,0.06959938]
[1717074716660,1.44751621,3776.6,3775.8,1.20919354]
[1717074717961,1.44751621,3776.6,3775.9,2.64837]
[1717074718359,1.44751621,3776.6,3776.0,0.06899061]
[1717074722472,1.44751621,3776.6,3776.1,2.64821]
[1717074722826,1.44751621,3776.6,3776.2,0.06879149]
[1717074723024,1.44751621,3776.6,3776.3,0.27170015]
[1717074723328,1.44751621,3776.6,3776.4,0.0687191]
[1717074723523,1.44751621,3776.6,3776.3,0.27170015]
[1717074723725,1.44751621,3776.6,3776.4,0.0687191]
[1717074723935,1.44751621,3776.6,3776.4,2.648]
[1717074724234,1.44751621,3776.6,3776.5,0.36065292]
[1717074731773,1.44751621,3776.6,3776.5,3.99694514]
[1717074731976,1.44751621,3776.6,3776.5,6.99694514]
[1717074732163,1.44751621,3776.6,3776.5,5.69905292]
[1717074733257,1.44751621,3776.6,3776.5,3.36065292]
[1717074733457,1.44751621,3776.6,3776.5,0.0686829]
[1717074733658,1.44751621,3776.6,3776.4,2.648]
[1717074734064,1.44751621,3776.6,3776.5,0.06610919]
[1717074734376,1.44751621,3776.6,3775.5,19.74]
[1717074734377,1.44751621,3776.6,3775.7,2.2534]
[1717074734560,1.44751621,3776.6,3776.5,0.06610919]
[1717074734748,4.97701751,3776.6,3775.5,7.38]
[1717074734950,4.57511,3776.3,3775.6,0.06643499]
[1717074735261,1.44751621,3776.6,3775.9,2.64834]
[1717074735446,1.44751621,3776.6,3776.2,2.64814]
[1717074735964,1.44751621,3776.6,3776.3,0.06634441]
[1717074736346,1.44751621,3776.6,3776.3,0.33779285]
[1717074738562,1.44751621,3776.6,3776.3,0.06634441]
[1717074738765,1.44751621,3776.6,3775.9,3.0]
[1717074738975,1.44751621,3776.6,3776.0,0.06650403]
[1717074739568,4.09542621,3776.6,3776.0,0.06650403]
[1717074739768,4.09542621,3776.6,3775.5,9.7326]
[1717074739769,1.927,3776.4,3775.5,9.7326]
[1717074739967,1.927,3776.4,3775.6,2.71523857]
[1717074741086,4.09542621,3776.6,3775.6,2.71523857]
[1717074742214,2.64813,3776.3,3775.6,0.06665857]
[1717074744511,4.69734178,3776.0,3775.6,0.06665857]
[1717074744716,0.12201178,3776.0,3775.6,2.3688]
[1717074745010,0.12201178,3776.0,3775.7,4.51488769]
[1717074745257,0.12201178,3776.0,3775.7,3.21699547]
[1717074747274,5.12667,3776.5,3775.7,3.21699547]
[1717074748201,2.64797,3776.5,3775.7,3.21699547]
[1717074749074,2.64797,3776.5,3775.7,2.71525147]
[1717074751220,2.40628995,3776.4,3775.7,2.71525147]
[1717074753483,2.64816,3776.3,3775.7,0.06674147]
[1717074753707,2.40628995,3776.2,3775.4,2.64872]
[1717074753891,2.40628995,3776.2,3775.5,0.06684061]
[1717074755176,4.57546,3775.8,3775.5,0.06684061]
[1717074755398,4.57546,3775.8,3774.8,7.38]
[1717074755399,2.44669056,3775.7,3774.8,7.38]
[1717074755598,6.41003222,3776.1,3774.8,7.38]
[1717074755599,4.5758,3775.3,3774.8,7.38]
[1717074755823,2.40628995,3775.2,3774.8,7.38]
[1717074756097,2.64895,3775.1,3774.8,7.38]
[1717074756441,2.64907,3774.9,3774.8,7.38]
[1717074756626,5.05535995,3774.9,3774.0,7.38]
[1717074756950,2.40628995,3774.8,3774.0,7.38]
[1717074758339,4.57607,3774.9,3774.0,7.38]
[1717074758936,2.64907,3774.9,3774.0,7.38]
[1717074759123,2.64907,3774.9,3774.1,2.64963]
[1717074761620,2.64907,3774.9,3774.2,0.06152894]
[1717074761935,2.64907,3774.9,3774.2,1.07064483]
[1717074762960,2.64907,3774.9,3774.2,0.06152894]
[1717074763146,2.64907,3774.9,3774.0,7.38]
[1717074763329,2.64907,3774.9,3774.1,0.06156518]
[1717074763818,2.6493,3774.6,3774.1,0.06156518]
[1717074765754,2.6493,3774.6,3773.7,17.40539]
[1717074765999,2.6493,3774.6,3773.8,0.0616472]
[1717074766356,0.13994213,3774.7,3773.8,0.0616472]
[1717074766357,2.64951,3774.3,3773.8,0.0616472]
[1717074766558,2.64951,3774.3,3773.7,12.36]
[1717074766769,2.64951,3774.3,3773.8,0.0616472]
[1717074767062,2.64951,3774.3,3773.7,12.36]
[1717074767288,2.64951,3774.3,3773.9,0.0619628]
[1717074767461,2.64951,3774.3,3773.8,0.06199904]
[1717074767799,2.64951,3774.3,3773.9,0.0619628]
[1717074768000,2.64951,3774.3,3773.7,12.36]
[1717074768173,2.64951,3774.3,3773.8,0.06199904]
[1717074768375,2.64951,3774.3,3773.7,12.36]
[1717074768699,2.64951,3774.3,3773.8,0.06199904]
[1717074769003,2.64951,3774.3,3773.7,12.36]
[1717074769161,2.78920213,3774.7,3773.9,0.0619628]
[1717074769502,2.78920213,3774.7,3773.9,2.3849]
[1717074769663,2.78920213,3774.7,3774.0,0.06192656]
[1717074770604,0.13994213,3774.7,3774.0,0.06192656]
[1717074771100,0.13994213,3774.7,3774.1,2.64963]
[1717074771462,0.13994213,3774.7,3774.2,0.06186864]
[1717074773409,2.6493,3774.6,3774.2,0.06186864]
[1717074773616,2.6493,3774.6,3773.7,2.64991]
[1717074773820,2.6493,3774.6,3773.8,0.06195535]
[1717074778006,2.6493,3774.6,3773.6,7.38]
[1717074778209,2.6493,3774.6,3773.9,0.06198707]
[1717074778399,2.6493,3774.6,3773.6,7.38]
[1717074778599,4.5763,3774.6,3774.0,0.06195083]
[1717074778821,0.64721349,3774.5,3773.6,7.38]
[1717074779145,4.5763,3774.6,3773.6,7.38]
[1717074779294,2.64951,3774.3,3773.6,7.38]
[1717074779515,2.64951,3774.3,3773.7,0.06205955]
[1717074782543,2.6497,3774.1,3773.7,0.06205955]
[1717074782715,2.91467,3774.1,3773.7,0.06205955]
[1717074783031,2.6497,3774.1,3773.3,15.01014]
[1717074783191,2.6497,3774.1,3773.8,0.06221267]
[1717074783395,2.64941,3774.5,3773.3,15.01014]
[1717074783630,2.64941,3774.5,3773.9,0.06219584]
[1717074783832,2.64941,3774.5,3773.6,2.64997]
[1717074784042,2.64941,3774.5,3774.0,0.0621596]
[1717074784334,2.64941,3774.5,3773.6,4.28075622]
[1717074784536,2.64941,3774.5,3774.1,0.06212337]
[1717074784834,2.64941,3774.5,3773.6,2.64997]
[1717074785040,2.64941,3774.5,3774.2,0.06209441]
[1717074785338,2.64941,3774.5,3774.3,0.06205818]
[1717074785740,2.64941,3774.5,3773.8,2.3941]
[1717074786043,2.64941,3774.5,3774.4,0.06202194]
[1717074786244,2.64941,3774.5,3773.8,2.3941]
[1717074786390,2.64941,3774.5,3774.4,0.06202194]
[1717074786594,2.64941,3774.5,3773.8,2.3941]
[1717074786840,2.64941,3774.5,3774.4,0.06202194]
[1717074787025,2.64941,3774.5,3773.8,2.3941]
[1717074787199,2.64941,3774.5,3774.4,0.06202194]
[1717074787533,2.64941,3774.5,3773.8,2.3941]
[1717074787747,2.64941,3774.5,3774.4,0.06202194]
[1717074788041,2.64941,3774.5,3773.8,2.3941]
[1717074788198,2.64941,3774.5,3774.4,0.06202194]
[1717074788398,2.64941,3774.5,3773.8,2.3941]
[1717074788600,2.64941,3774.5,3774.4,0.06202194]
[1717074788939,2.64941,3774.5,3773.8,2.3941]
[1717074789095,2.64941,3774.5,3774.4,0.06202194]
[1717074789297,2.64941,3774.5,3773.8,2.3941]
[1717074789644,2.64941,3774.5,3773.9,0.06220313]
[1717074790844,2.64941,3774.5,3773.7,7.38]
[1717074791053,2.64941,3774.5,3774.0,0.06216689]
[1717074791220,0.13994213,3774.7,3774.0,2.64964]
[1717074791424,0.13994213,3774.7,3774.1,0.06213065]
[1717074791654,0.13994213,3774.7,3774.2,2.64952]
[1717074791812,0.13994213,3774.7,3774.3,0.27116506]
[1717074792011,0.13994213,3774.7,3774.4,0.06186657]
[1717074792306,0.13994213,3774.7,3774.4,2.76420985]
[1717074792545,0.13994213,3774.7,3774.4,2.71122657]
[1717074793154,0.13994213,3774.7,3774.6,2.64928]
[1717074793351,0.13994213,3774.7,3774.6,3.18653116]
[1717074793554,0.13994213,3774.7,3774.6,3.24832041]
[1717074796062,0.13994213,3774.7,3774.6,0.59904041]
[1717074796368,0.13994213,3774.7,3774.6,0.06178925]
[1717074796686,0.13994213,3774.7,3774.2,2.6495]
[1717074796867,0.13994213,3774.7,3774.6,0.06184023]
[1717074797198,0.13994213,3774.7,3774.2,2.6495]
[1717074797696,0.13994213,3774.7,3774.3,0.06194892]
[1717074797869,0.13994213,3774.7,3774.3,0.33309381]
[1717074798073,0.13994213,3774.7,3774.3,0.27114489]
[1717074798397,0.13994213,3774.7,3774.4,0.06191269]
[1717074798567,0.13994213,3774.7,3774.5,2.64935]
[1717074798923,0.13994213,3774.7,3774.6,0.06183052]
[1717074799202,0.13994213,3774.7,3774.6,0.36006306]
[1717074801567,0.13994213,3774.7,3774.6,1.65795528]
[1717074801785,0.13994213,3774.7,3774.6,7.03075528]
[1717074801987,0.13994213,3774.7,3774.6,9.68003528]
[1717074803318,0.13994213,3774.7,3774.6,8.38214306]
[1717074804121,0.13994213,3774.7,3774.6,6.00934306]
[1717074805139,0.13994213,3774.7,3774.6,3.00934306]
[1717074805429,0.13994213,3774.7,3774.6,0.06183052]
[1717074805606,0.13994213,3774.7,3774.3,2.64949]
[1717074805906,0.13994213,3774.7,3774.4,0.06170398]
[1717074811250,2.4818,3774.6,3774.4,0.06170398]
[1717074812000,0.13994213,3774.7,3774.4,0.06170398]
[1717074815359,0.13994213,3774.7,3774.4,0.33282338]
[1717074816015,0.13994213,3774.7,3774.5,2.64935]
[1717074816217,0.13994213,3774.7,3774.6,0.06161453]
[1717074816434,0.13994213,3774.7,3774.6,2.49151453]
[1717074816627,0.13994213,3774.7,3774.6,5.49151453]
[1717074816846,0.13994213,3774.7,3774.6,6.41281292]
[1717074821764,5.3063,3776.8,3775.5,2.64861]
[1717074822065,0.57298408,3776.5,3775.5,2.64861]
[1717074822217,0.57298408,3776.5,3775.6,0.06109464]
[1717074823258,2.64803,3776.4,3775.6,0.06109464]
[1717074823458,2.64816,3776.2,3775.6,0.06109464]
[1717074823621,2.77029768,3776.2,3775.6,0.06109464]
[1717074823817,2.77029768,3776.2,3775.3,7.38]
[1717074823818,0.57301823,3776.1,3775.3,7.38]
[1717074824057,0.57301823,3776.1,3775.4,0.06081771]
[1717074825115,2.64836,3776.0,3775.4,0.06081771]
[1717074825315,2.64845,3775.8,3775.4,0.06081771]
[1717074825857,2.64845,3775.8,3775.5,0.0607815]
[1717074826053,2.64845,3775.8,3775.0,15.00899]
[1717074826260,2.64845,3775.8,3775.1,0.06092636]
[1717074828522,2.3063,3775.9,3775.2,2.64885]
[1717074828727,5.18585768,3776.2,3775.2,2.64885]
[1717074828920,5.18585768,3776.2,3775.3,0.06085393]
[1717074830620,0.12213768,3776.2,3775.6,2.64855]
[1717074830821,0.12213768,3776.2,3775.7,0.06070908]
[1717074831265,0.12213768,3776.2,3775.5,2.64864]
[1717074831573,0.12213768,3776.2,3775.6,0.06075742]
[1717074832066,2.4595,3776.0,3775.6,0.06075742]
[1717074832421,2.4595,3776.0,3775.2,3.0]
[1717074832623,2.64837,3775.9,3775.7,0.0606921]
[1717074832844,2.64837,3775.9,3775.1,2.64887]
[1717074833077,2.64837,3775.9,3775.8,0.0606559]
[1717074833280,2.64837,3775.9,3775.1,2.64887]
[1717074833476,2.64837,3775.9,3775.2,0.06087316]
[1717074833870,0.39915545,3776.2,3775.3,1.29789222]
[1717074833871,0.12213768,3776.2,3775.3,1.29789222]
[1717074834065,0.12213768,3776.2,3775.4,0.06080073]
[1717074835097,0.12213768,3776.2,3775.6,2.64857]
[1717074835601,0.12213768,3776.2,3775.7,0.0606921]
[1717074838396,0.801,3775.8,3775.7,0.0606921]
[1717074838597,0.801,3775.8,3775.3,3.94668222]
[1717074838801,0.801,3775.8,3775.7,0.06071877]
[1717074838997,0.801,3775.8,3775.4,0.49556565]
[1717074839203,0.801,3775.8,3775.7,0.06071877]
[1717074839419,0.801,3775.8,3775.0,5.649]
[1717074839613,0.801,3775.8,3775.7,0.06071877]
[1717074839614,2.64846,3775.8,3775.7,0.06071877]
[1717074839779,3.955946,3775.8,3775.0,2.649]
[1717074840112,2.4164,3775.9,3774.5,3.0]
[1717074840113,2.64866,3775.5,3774.7,2.64919]
[1717074840409,2.4164,3775.9,3774.5,3.0]
[1717074840410,5.06483,3775.9,3774.5,3.0]
[1717074840609,0.801,3775.4,3774.5,3.0]
[1717074840781,0.801,3775.6,3774.8,2.64911]
[1717074841802,2.64843,3775.9,3775.1,2.64892]
[1717074841972,0.801,3775.7,3775.1,2.64892]
[1717074842172,0.801,3775.7,3775.2,1.13268122]
[1717074842601,0.801,3775.5,3775.2,1.13268122]
[1717074844176,0.801,3775.5,3774.7,2.64916]
[1717074844376,2.64858,3775.6,3774.7,2.64916]
[1717074844571,0.801,3775.7,3774.7,3.45016]
[1717074844877,0.801,3775.7,3774.7,2.64916]
[1717074845101,0.801,3775.7,3775.0,3.94687222]
[1717074845300,0.801,3775.8,3775.0,6.20267222]
[1717074845535,0.57307016,3775.9,3775.2,2.64886]
[1717074845709,0.801,3775.8,3775.2,2.64886]
[1717074847126,0.572999,3776.1,3775.5,2.64865]
[1717074847279,0.801,3776.1,3775.5,2.64865]
[1717074847482,0.801,3776.1,3775.6,0.564865]
[1717074849822,0.69508581,3776.2,3775.7,5.03151]
[1717074849985,0.92313768,3776.2,3775.7,5.03151]
[1717074850305,0.12213768,3776.2,3775.7,5.03151]
[1717074851111,0.12213768,3776.2,3775.9,2.64836]
[1717074851295,0.12213768,3776.2,3776.0,0.46523785]
[1717074851481,0.12213768,3776.2,3776.1,2.70876757]
[1717074852090,0.12213768,3776.2,3776.1,5.17346757]
[1717074853491,0.12213768,3776.2,3776.1,6.47135979]
[1717074854907,0.12213768,3776.2,3776.1,9.47135979]
[1717074855110,0.12213768,3776.2,3776.1,10.46501955]
[1717074855443,0.12213768,3776.2,3776.1,11.01501955]
[1717074856293,1.44751621,3776.6,3776.5,2.64795]
[1717074856495,1.44751621,3776.6,3776.5,9.38776225]
[1717074860959,1.44751621,3776.6,3776.5,7.00616225]
[1717074861125,1.44751621,3776.6,3776.5,2.70827003]
[1717074862948,1.44751621,3776.6,3776.5,4.27698925]
[1717074863652,1.44751621,3776.6,3776.5,7.27698925]
[1717074878419,1.44751621,3776.6,3776.5,8.07698925]
[1717074878588,1.44751621,3776.6,3776.5,7.27698925]
[1717074883809,1.44751621,3776.6,3776.5,8.07698925]
[1717074884100,1.44751621,3776.6,3776.5,7.27698925]
[1717074884307,1.44751621,3776.6,3776.5,8.07698925]
[1717074885006,1.44751621,3776.6,3776.5,7.27698925]
[1717074892223,1.44751621,3776.6,3776.5,8.07698925]
[1717074892599,1.44751621,3776.6,3776.5,13.62943925]
[1717074893437,2.364,3778.4,3777.9,2.64697]
[1717074893594,0.8,3778.3,3777.9,2.64697]
[1717074893798,0.8,3778.3,3777.9,2.70221402]
[1717074894399,0.8,3778.1,3777.9,2.70221402]
[1717074894599,0.8,3778.3,3777.9,2.70221402]
[1717074895303,2.3627,3778.1,3777.9,2.70221402]
[1717074896026,0.8,3778.3,3777.9,2.70221402]
[1717074896539,3.0849,3778.5,3777.9,2.70221402]
[1717074897150,2.2849,3778.5,3777.9,2.70221402]
[1717074897455,2.40340633,3778.5,3777.9,2.70221402]
[1717074897659,2.40340633,3778.5,3777.9,5.70221402]
[1717074898126,2.40340633,3778.5,3777.9,7.00010624]
[1717074898329,0.11850633,3778.5,3777.9,7.00010624]
[1717074902388,0.11850633,3778.5,3777.9,7.55010624]
[1717074902600,2.3444,3779.3,3777.9,10.76194124]
[1717074902730,2.3444,3779.3,3777.9,13.22374124]
[1717074902731,1e-08,3778.0,3777.9,13.22374124]
[1717074904066,1e-08,3778.0,3777.9,14.02374124]
[1717074904908,1e-08,3778.0,3777.9,16.67071124]
[1717074905169,1e-08,3778.0,3777.9,19.46071124]
[1717074905370,0.133,3779.5,3779.4,2.64592]
[1717074905567,0.133,3779.5,3779.4,3.94381222]
[1717074905864,0.133,3779.5,3779.4,0.05403941]
[1717074906043,0.58167949,3779.5,3779.4,0.05403941]
[1717074906247,0.58167949,3779.5,3779.0,2.64616]
[1717074906444,0.26274949,3779.5,3779.4,0.05403941]
[1717074906641,0.26274949,3779.5,3779.0,3.44616]
[1717074906972,0.26274949,3779.5,3779.4,0.05394761]
[1717074907166,0.26274949,3779.5,3779.2,2.64604]
[1717074907342,0.26274949,3779.5,3779.4,0.05394761]
[1717074907545,0.26274949,3779.5,3779.2,2.64604]
[1717074907868,0.26274949,3779.5,3779.4,0.05394761]
[1717074908044,0.26274949,3779.5,3779.3,0.05400066]
[1717074908240,0.26274949,3779.5,3779.4,0.05396452]
[1717074909072,0.26274949,3779.5,3779.4,1.35185674]
[1717074909261,0.26274949,3779.5,3779.4,1.75164641]
[1717074909570,0.26274949,3779.5,3779.4,1.35185674]
[1717074911433,2.64477,3781.1,3780.1,2.64541]
[1717074911634,2.64477,3781.1,3780.2,4.29789222]
[1717074911839,2.64477,3781.1,3780.2,4.35156771]
[1717074912059,0.8,3781.0,3780.3,2.64529]
[1717074912404,2.2853,3781.1,3780.4,0.05352596]
[1717074914712,0.76990617,3781.5,3780.4,2.89530756]
[1717074914916,0.76990617,3781.5,3780.4,5.89530756]
[1717074915075,0.76990617,3781.5,3780.4,3.62340756]
[1717074915272,0.76990617,3781.5,3780.4,5.95900756]
[1717074915570,0.0834083,3780.5,3780.4,7.67754908]
[1717074915903,0.0834083,3780.5,3780.4,7.80689978]
[1717074916267,0.0834083,3780.5,3780.4,9.82221978]
[1717074916475,0.0834083,3780.5,3780.4,13.01743978]
[1717074916798,8.3e-06,3780.5,3780.4,13.01743978]
[1717074917007,8.3e-06,3780.5,3780.4,18.81947575]
[1717074917180,8.3e-06,3780.5,3780.4,19.14403557]
[1717074917379,0.76990617,3781.5,3781.4,4.96992]
[1717074917619,4.41e-06,3781.5,3781.4,13.14574017]
[1717074917839,4.41e-06,3781.5,3781.4,8.22793465]
[1717074918010,4.41e-06,3781.5,3781.4,10.14493465]
[1717074918191,4.41e-06,3781.5,3781.4,7.67793465]
[1717074918512,4.41e-06,3781.5,3781.4,8.22793465]
[1717074919112,4.41e-06,3781.5,3781.4,7.67793465]
[1717074920025,4.41e-06,3781.5,3781.4,2.69663448]
[1717074920376,4.41e-06,3781.5,3781.4,0.05211448]
[1717074920852,4.41e-06,3781.5,3781.0,2.64479]
[1717074921025,4.41e-06,3781.5,3781.4,0.04992613]
[1717074921177,4.41e-06,3781.5,3781.0,3.94268222]
[1717074921379,4.41e-06,3781.5,3781.4,0.04992613]
[1717074921617,4.41e-06,3781.5,3781.0,3.94268222]
[1717074922123,4.41e-06,3781.5,3781.1,0.05003444]
[1717074922279,4.41e-06,3781.5,3781.0,3.94268222]
[1717074922477,4.41e-06,3781.5,3781.2,2.64464]
[1717074922705,4.41e-06,3781.5,3781.3,0.04996223]
[1717074922917,4.41e-06,3781.5,3780.9,3.0]
[1717074923125,4.41e-06,3781.5,3781.0,1.29789222]
[1717074923454,4.41e-06,3781.5,3781.0,1.34796276]
[1717074924914,4.41e-06,3781.5,3781.1,2.64472]
[1717074925131,4.41e-06,3781.5,3781.3,2.64459]
[1717074925290,4.41e-06,3781.5,3781.4,1.89781835]
[1717074925486,4.41e-06,3781.5,3781.4,4.89781835]
[1717074927305,2.643,3783.6,3781.5,2.3218]
[1717074927488,0.1917,3783.5,3781.8,7.38]
[1717074927682,0.1917,3783.5,3782.6,2.64362]
[1717074927992,0.1917,3783.5,3782.7,0.04945702]
[1717074928595,1.917,3783.3,3782.7,0.04945702]
[1717074928830,1.917,3782.8,3782.7,0.04945702]
[1717074929130,1.917,3782.8,3781.7,2.6443]
[1717074929131,2.64376,3782.5,3781.7,7.38]
[1717074929279,2.64376,3782.5,3781.2,2.6446]
[1717074929280,1.917,3782.4,3781.3,7.38]
[1717074929487,2.64392,3782.3,3781.3,7.38]
[1717074930628,3.62039222,3782.8,3781.7,2.64426]
[1717074930629,4.56064,3782.7,3781.7,2.64426]
[1717074930831,5.248954,3782.7,3781.7,3.94215222]
[1717074931531,3.331954,3782.7,3781.8,1.29789222]
[1717074932687,2.64364,3782.7,3781.9,2.64415]
[1717074932890,2.3225,3782.8,3781.9,3.94204222]
[1717074933101,2.3225,3782.8,3782.2,2.64395]
[1717074933314,2.3225,3782.8,3782.2,3.94184222]
[1717074935422,2.64336,3783.1,3782.2,3.94184222]
[1717074935635,2.64336,3783.1,3782.3,4.69207644]
[1717074935944,2.52312846,3783.3,3782.4,2.64382]
[1717074937185,2.52312846,3783.3,3782.7,2.64358]
[1717074937186,0.16122846,3783.3,3782.7,2.64358]
[1717074937594,2.339,3783.2,3782.3,5.64385]
[1717074937796,2.339,3783.2,3782.3,6.94174222]
[1717074938493,2.85334785,3783.2,3782.3,6.94174222]
[1717074939602,0.51434785,3783.2,3782.3,9.42854222]
[1717074939824,2.80447846,3783.3,3782.4,1.29789222]
[1717074940046,0.16122846,3783.3,3782.5,2.6437]
[1717074940252,0.16122846,3783.3,3782.6,1.29789222]
[1717074941125,0.16122846,3783.3,3782.7,0.04937756]
[1717074941438,0.16122846,3783.3,3782.7,1.34726978]
[1717074941757,0.16122846,3783.3,3782.8,1.29789222]
[1717074941913,0.16122846,3783.3,3782.9,0.04930542]
[1717074942318,0.16122846,3783.3,3782.5,2.6437]
[1717074942650,0.16122846,3783.3,3782.6,2.71035585]
[1717074942856,0.16122846,3783.3,3782.7,5.64355]